bitfinex-derivatives/quotes_BTCF0:USTF0_20251210
["timestamp","ask_amount","ask_price","bid_price","bid_amount"]
[1765409041543,0.3612882,92334.0,92333.0,0.38675533]
[1765409043137,0.3612882,92334.0,92333.0,0.38775533]
[1765409043634,0.3612882,92334.0,92333.0,0.38875533]
[1765409060950,0.3612882,92334.0,92333.0,0.03408533]
[1765409061254,0.3716197,92322.0,92321.0,0.19461107]
[1765409061650,0.3716197,92322.0,92321.0,0.37578107]
[1765409061854,0.3716197,92322.0,92321.0,0.34656]
[1765409062854,0.3726197,92322.0,92321.0,0.35256]
[1765409072760,0.3726197,92322.0,92321.0,0.006]
[1765409073167,0.3726197,92322.0,92321.0,0.03704796]
[1765409073375,0.3726197,92322.0,92321.0,0.20371796]
[1765409075375,0.3726197,92322.0,92321.0,0.03704796]
[1765409077582,0.3726197,92322.0,92321.0,0.20371796]
[1765409077978,0.3726197,92322.0,92321.0,0.03704796]
[1765409078281,0.3726197,92322.0,92321.0,0.37820796]
[1765409078982,0.3726197,92322.0,92321.0,0.20371796]
[1765409080178,0.3726197,92322.0,92321.0,0.37820796]
[1765409092579,0.3726197,92322.0,92321.0,0.03704796]
[1765409093994,0.38346406,92322.0,92321.0,0.03025818]
[1765409094189,0.3576107,92313.0,92312.0,0.00016241]
[1765409094487,0.34678,92301.0,92300.0,0.14546]
[1765409094683,0.34678,92299.0,92298.0,0.17253107]
[1765409094878,0.34678,92299.0,92298.0,0.28662]
[1765409096989,0.34878,92299.0,92298.0,0.30362]
[1765409097288,0.35078,92299.0,92298.0,0.31862]
[1765409097479,0.34878,92299.0,92298.0,0.30162]
[1765409097679,0.35078,92299.0,92298.0,0.31662]
[1765409098980,0.35078,92299.0,92298.0,0.30623]
[1765409101085,0.35078,92299.0,92298.0,0.28786]
[1765409101290,0.35078,92299.0,92298.0,0.15893]
[1765409101496,0.35078,92299.0,92298.0,0.03]
[1765409101789,0.35078,92299.0,92290.0,0.00108355]
[1765409101790,0.2934733,92291.0,92290.0,0.00108355]
[1765409102091,0.6542733,92291.0,92290.0,0.25502355]
[1765409103690,0.6572733,92291.0,92290.0,0.25602355]
[1765409103890,0.6592733,92291.0,92290.0,0.25602355]
[1765409104876,0.3658,92291.0,92290.0,0.25602355]
[1765409105083,0.005,92291.0,92290.0,0.25602355]
[1765409105483,0.005,92291.0,92290.0,0.30446355]
[1765409106195,0.005,92291.0,92290.0,0.3350752]
[1765409107789,0.0108316,92306.0,92305.0,0.23134]
[1765409107983,0.0001625,92308.0,92307.0,0.23134]
[1765409108297,0.0001625,92308.0,92307.0,0.6227497]
[1765409109089,0.3716298,92321.0,92320.0,0.11386]
[1765409109299,0.3608,92321.0,92320.0,0.2385499]
[1765409109687,0.0108291,92327.0,92326.0,0.2385492]
[1765409110398,0.2909491,92327.0,92326.0,0.22772]
[1765409112098,0.2919491,92327.0,92326.0,0.22872]
[1765409112303,0.2959491,92327.0,92326.0,0.22872]
[1765409112796,0.2979491,92327.0,92326.0,0.22872]
[1765409113296,0.2929491,92327.0,92326.0,0.22872]
[1765409113495,0.2979491,92327.0,92326.0,0.22872]
[1765409115196,0.2989491,92327.0,92326.0,0.22872]
[1765409115896,0.2959491,92327.0,92326.0,0.22772]
[1765409116090,0.1596891,92327.0,92326.0,0.22872]
[1765409116286,0.2989491,92327.0,92326.0,0.22872]
[1765409117103,0.2939491,92327.0,92326.0,0.22872]
[1765409117303,0.2989491,92327.0,92326.0,0.22872]
[1765409118705,0.2979491,92327.0,92326.0,0.22872]
[1765409119293,0.2949491,92327.0,92326.0,0.22772]
[1765409119494,0.2969491,92327.0,92326.0,0.22872]
[1765409119811,0.2929491,92327.0,92326.0,0.22872]
[1765409120006,0.2979491,92327.0,92326.0,0.22872]
[1765409120305,0.2999491,92327.0,92326.0,0.22872]
[1765409121393,0.2949491,92327.0,92326.0,0.22872]
[1765409121603,0.2999491,92327.0,92326.0,0.22872]
[1765409123301,0.0198291,92327.0,92326.0,0.22872]
[1765409123705,0.28912,92327.0,92326.0,0.22872]
[1765409123899,0.009,92327.0,92326.0,0.22872]
[1765409125102,0.14986,92327.0,92326.0,0.22872]
[1765409125610,0.009,92327.0,92326.0,0.22872]
[1765409126011,0.14986,92327.0,92326.0,0.22872]
[1765409126311,0.28912,92327.0,92326.0,0.22872]
[1765409130709,0.2999491,92327.0,92326.0,0.22872]
[1765409135317,0.2999491,92327.0,92326.0,0.25937489]
[1765409135623,0.009,92327.0,92326.0,0.25937489]
[1765409136613,0.13351,92327.0,92326.0,0.25937489]
[1765409136815,0.26732,92327.0,92326.0,0.25937489]
[1765409137417,0.26732,92327.0,92326.0,0.28849527]
[1765409137917,0.13351,92327.0,92326.0,0.28849527]
[1765409138320,0.26732,92327.0,92326.0,0.25937489]
[1765409139413,0.2781491,92327.0,92326.0,0.25937489]
[1765409139605,0.26732,92327.0,92326.0,0.25937489]
[1765409140510,0.2781491,92327.0,92326.0,0.25937489]
[1765409141218,0.26732,92327.0,92326.0,0.25937489]
[1765409144421,0.26732,92327.0,92326.0,0.76205489]
[1765409145122,0.26732,92327.0,92326.0,1.12285489]
[1765409150918,0.009,92327.0,92326.0,1.12285489]
[1765409151117,0.26732,92327.0,92326.0,1.12285489]
[1765409152121,0.2781491,92327.0,92326.0,1.12285489]
[1765409152720,0.2781491,92327.0,92326.0,1.15209121]
[1765409154022,0.009,92327.0,92326.0,1.12285489]
[1765409154218,0.0744025,92336.0,92335.0,0.0643881]
[1765409154423,0.0744025,92336.0,92335.0,0.45584299]
[1765409154624,0.1989125,92336.0,92335.0,0.45584299]
[1765409154827,0.3327225,92336.0,92335.0,0.45584299]
[1765409156326,0.3367225,92336.0,92335.0,0.45684299]
[1765409156824,0.3417225,92336.0,92335.0,0.45684299]
[1765409157018,0.3377225,92336.0,92335.0,0.45584299]
[1765409157233,0.3407225,92336.0,92335.0,0.45684299]
[1765409161130,0.3407225,92336.0,92335.0,0.48604693]
[1765409165133,0.2069125,92336.0,92335.0,0.48604693]
[1765409165327,0.3176225,92336.0,92335.0,0.45684299]
[1765409165526,0.3176225,92336.0,92335.0,0.39245489]
[1765409165927,0.3176225,92336.0,92335.0,0.40070489]
[1765409167138,0.3176225,92336.0,92335.0,0.03990489]
[1765409167340,0.3176225,92336.0,92335.0,0.04671489]
[1765409169836,0.3284505,92336.0,92335.0,0.04671489]
[1765409171738,0.3284505,92336.0,92335.0,0.03990489]
[1765409175540,0.3284505,92336.0,92335.0,0.03165489]
[1765409175741,0.06086,92328.0,92327.0,0.02921144]
[1765409175945,0.2195291,92327.0,92326.0,0.41377]
[1765409176842,0.2195291,92327.0,92326.0,0.46674]
[1765409177340,0.2215291,92327.0,92326.0,0.46674]
[1765409178242,0.2225291,92327.0,92326.0,0.46774]
[1765409178639,0.2205291,92327.0,92326.0,0.46774]
[1765409178845,0.2235291,92327.0,92326.0,0.46774]
[1765409179547,0.2245291,92327.0,92326.0,0.46774]
[1765409182148,0.2245291,92327.0,92326.0,0.3618]
[1765409183639,0.2245291,92327.0,92326.0,0.001]
[1765409184548,0.2195301,92318.0,92317.0,0.0001625]
[1765409185038,0.2803913,92308.0,92306.0,0.03891193]
[1765409185237,0.2803922,92300.0,92299.0,0.4485]
[1765409186544,0.2823922,92300.0,92299.0,0.4485]
[1765409186748,0.2843922,92300.0,92299.0,0.4585]
[1765409187751,0.2843922,92300.0,92299.0,0.48950665]
[1765409189153,0.2843922,92300.0,92299.0,0.12870665]
[1765409190557,0.2843922,92300.0,92299.0,0.0977]
[1765409200057,0.2843922,92300.0,92299.0,0.01]
[1765409200264,0.2843922,92300.0,92299.0,0.03828]
[1765409200452,0.2843922,92300.0,92299.0,0.01]
[1765409201257,0.2843922,92300.0,92299.0,0.03828]
[1765409201854,0.2843922,92300.0,92299.0,0.06568]
[1765409202056,0.2843922,92300.0,92299.0,0.03828]
[1765409203153,0.2843922,92300.0,92299.0,0.06927086]
[1765409203353,0.2843922,92300.0,92299.0,0.03828]
[1765409204055,0.2843922,92300.0,92299.0,0.01]
[1765409204567,0.2843922,92300.0,92299.0,0.03482]
[1765409205366,0.2843922,92300.0,92299.0,0.089838]
[1765409209367,0.2843922,92300.0,92299.0,0.040198]
[1765409214263,0.2843922,92300.0,92299.0,0.074618]
[1765409214471,0.2843922,92300.0,92299.0,0.057788]
[1765409216667,0.2843922,92300.0,92299.0,0.040198]
[1765409217974,0.2843922,92300.0,92299.0,0.054808]
[1765409218162,0.2843922,92300.0,92299.0,0.040198]
[1765409218563,0.2843922,92300.0,92299.0,0.053368]
[1765409219475,0.2843922,92300.0,92299.0,0.040198]
[1765409220171,0.2843922,92300.0,92299.0,0.03424]
[1765409220368,0.2843922,92300.0,92299.0,0.01]
[1765409220571,0.1809633,92291.0,92290.0,0.00119228]
[1765409220870,0.1809633,92291.0,92290.0,0.03173881]
[1765409221674,0.1829633,92291.0,92290.0,0.03173881]
[1765409222067,0.1829633,92291.0,92290.0,1e-08]
[1765409222270,0.1809653,92274.0,92273.0,0.03891193]
[1765409222572,0.1809653,92274.0,92272.0,0.01058]
[1765409222573,0.17013,92273.0,92272.0,0.01058]
[1765409222776,0.17013,92273.0,92272.0,0.02116]
[1765409223970,0.17213,92273.0,92272.0,0.02116]
[1765409224765,0.17413,92273.0,92272.0,0.02116]
[1765409225071,0.004,92273.0,92272.0,0.02116]
[1765409225671,0.17413,92273.0,92272.0,0.02116]
[1765409229677,0.180966,92268.0,92267.0,0.024806]
[1765409229872,0.097546,92268.0,92267.0,0.024806]
[1765409230066,0.097546,92268.0,92267.0,0.385606]
[1765409230265,0.08671,92268.0,92267.0,0.385606]
[1765409230980,0.08871,92268.0,92267.0,0.385606]
[1765409231780,0.09071,92268.0,92267.0,0.385606]
[1765409231975,0.09071,92268.0,92267.0,0.37477]
[1765409231976,0.17413,92268.0,92267.0,0.37477]
[1765409232276,0.1676,92266.0,92265.0,0.00108384]
[1765409232480,0.0108361,92267.0,92260.0,7.727e-05]
[1765409232481,0.1784368,92261.0,92260.0,7.727e-05]
[1765409234383,0.1804368,92261.0,92260.0,7.727e-05]
[1765409235066,0.1824368,92261.0,92260.0,7.727e-05]
[1765409235782,0.5432368,92261.0,92260.0,7.727e-05]
[1765409236083,0.5432368,92261.0,92260.0,0.17380727]
[1765409236279,0.5432368,92261.0,92260.0,0.08694727]
[1765409236481,0.5432368,92261.0,92260.0,7.727e-05]
[1765409237378,0.5432368,92261.0,92244.0,0.02913515]
[1765409237379,0.1784385,92247.0,92244.0,0.02913515]
[1765409237681,0.1784392,92241.0,92240.0,0.00108413]
[1765409237870,0.5392392,92241.0,92240.0,0.00108413]
[1765409238479,0.53931647,92241.0,92240.0,0.00108413]
[1765409239376,0.54431647,92241.0,92240.0,0.00108413]
[1765409239887,0.54631647,92241.0,92240.0,0.00108413]
[1765409240082,0.54631647,92241.0,92240.0,0.08795413]
[1765409240471,0.54831647,92241.0,92240.0,0.08795413]
[1765409244487,0.54831647,92241.0,92240.0,0.00108413]
[1765409245084,0.54831647,92241.0,92240.0,0.08795413]
[1765409245688,0.54831647,92241.0,92240.0,0.00108413]
[1765409245888,0.54831647,92241.0,92240.0,0.08795413]
[1765409246087,0.54831647,92241.0,92228.0,0.3608]
[1765409246397,0.22056,92220.0,92219.0,0.5453717]
[1765409246580,0.22063727,92220.0,92219.0,0.57549683]
[1765409247591,0.22163727,92220.0,92219.0,0.57549683]
[1765409248993,0.16867727,92220.0,92219.0,0.57549683]
[1765409250090,0.17067727,92220.0,92219.0,0.57549683]
[1765409251598,0.17067727,92220.0,92219.0,0.60460883]
[1765409251782,0.00307727,92220.0,92219.0,0.60460883]
[1765409251983,0.00307727,92220.0,92219.0,1.07857683]
[1765409252194,0.00307727,92220.0,92219.0,1.47857683]
[1765409254197,0.00307727,92220.0,92219.0,1.53885277]
[1765409254592,0.00307727,92220.0,92219.0,1.48059532]
[1765409255486,0.00307727,92220.0,92219.0,1.53883488]
[1765409255690,0.00307727,92220.0,92219.0,1.48059532]
[1765409256101,0.00307727,92220.0,92219.0,1.53883488]
[1765409256297,0.09112887,92220.0,92219.0,1.48059532]
[1765409257604,0.08028727,92220.0,92219.0,1.48059532]
[1765409258194,0.15887727,92220.0,92219.0,1.13884719]
[1765409258586,0.00307727,92220.0,92219.0,1.13884719]
[1765409259197,0.00307727,92220.0,92219.0,1.08059532]
[1765409260193,0.00016259,92229.0,92228.0,0.1675607]
[1765409260393,0.07737259,92229.0,92228.0,0.56050432]
[1765409260889,0.00016259,92229.0,92228.0,0.56050432]
[1765409262092,0.00316259,92229.0,92228.0,0.61882249]
[1765409262296,0.00316259,92229.0,92228.0,0.56050432]
[1765409262605,0.20466,92250.0,92249.0,0.15672]
[1765409262897,0.1558,92259.0,92258.0,0.15672]
[1765409263101,0.20466,92265.0,92264.0,0.1675565]
[1765409263294,0.20466,92265.0,92264.0,0.69198362]
[1765409264198,0.20466,92265.0,92264.0,0.73087072]
[1765409264505,0.2154963,92265.0,92264.0,0.73087072]
[1765409265201,0.20466,92265.0,92264.0,0.69198362]
[1765409265496,0.20966,92265.0,92264.0,0.69398362]
[1765409265898,0.20766,92265.0,92264.0,0.69298362]
[1765409266097,0.20766,92265.0,92264.0,0.69398362]
[1765409268297,0.20766,92265.0,92264.0,0.72311789]
[1765409269205,0.20766,92265.0,92264.0,0.69398362]
[1765409277506,0.20766,92265.0,92264.0,0.58378]
[1765409277904,0.20766,92265.0,92264.0,0.66172]
[1765409278298,0.003,92265.0,92264.0,0.66172]
[1765409278695,0.003,92265.0,92264.0,0.69384762]
[1765409280409,0.003,92265.0,92264.0,1.05464762]
[1765409281008,0.2043,92265.0,92264.0,0.89792762]
[1765409281314,0.2043,92265.0,92264.0,0.68988152]
[1765409286000,0.15567,92256.0,92255.0,0.00016259]
[1765409286708,0.2013,92256.0,92255.0,0.00016259]
[1765409287102,0.2013,92256.0,92255.0,0.00916259]
[1765409287307,0.2033,92256.0,92255.0,0.00916259]
[1765409288603,0.2033,92256.0,92255.0,0.00608532]
[1765409288806,0.15567,92251.0,92250.0,0.45856]
[1765409289616,0.166508,92251.0,92250.0,0.53667]
[1765409289817,0.166508,92251.0,92250.0,0.6113]
[1765409290318,0.169508,92251.0,92250.0,0.46456]
[1765409290615,0.169508,92251.0,92250.0,0.006]
[1765409290912,0.1604096,92237.0,92236.0,0.16074]
[1765409292714,0.1624096,92237.0,92236.0,0.16074]
[1765409293618,0.1674096,92237.0,92236.0,0.16074]
[1765409299826,0.1604109,92226.0,92225.0,0.16074]
[1765409300121,0.1604109,92226.0,92225.0,0.19291545]
[1765409301421,0.1614109,92226.0,92225.0,0.19291545]
[1765409302025,0.1634109,92226.0,92225.0,0.16074]
[1765409304918,0.2064116,92220.0,92219.0,0.66386]
[1765409305222,0.2064116,92220.0,92219.0,0.69601978]
[1765409305727,0.2064116,92220.0,92219.0,0.66386]
[1765409305923,0.2064116,92220.0,92219.0,0.69601809]
[1765409306226,0.2064116,92220.0,92219.0,0.66386]
[1765409306227,0.2084116,92220.0,92219.0,0.66386]
[1765409307326,0.2104116,92220.0,92219.0,0.16074]
[1765409307633,0.2104116,92220.0,92219.0,0.08068]
[1765409308327,0.2104116,92220.0,92219.0,0.16074]
[1765409308922,0.2104116,92220.0,92219.0,0.08068]
[1765409309737,0.1601521,92216.0,92215.0,0.15364443]
[1765409311133,0.1621521,92216.0,92215.0,0.15364443]
[1765409311427,0.1641521,92216.0,92215.0,0.15364443]
[1765409314234,0.1641521,92216.0,92215.0,0.18582865]
[1765409321135,0.1641521,92216.0,92215.0,0.21496292]
[1765409321334,0.0148421,92216.0,92215.0,0.25544292]
[1765409321544,0.0148421,92216.0,92215.0,0.21496292]
[1765409321844,0.0915221,92216.0,92215.0,0.18582865]
[1765409322139,0.1641521,92216.0,92215.0,0.18582865]
[1765409323127,0.0148421,92216.0,92215.0,0.18582865]
[1765409324532,0.0915221,92216.0,92215.0,0.18582865]
[1765409325642,0.0148421,92216.0,92215.0,0.18582865]
[1765409325842,0.0148421,92216.0,92215.0,0.22560865]
[1765409330144,0.004,92216.0,92215.0,0.22560865]
[1765409330352,0.0108414,92223.0,92222.0,0.1634014]
[1765409330541,0.0108414,92223.0,92222.0,0.19558562]
[1765409332252,0.0128414,92223.0,92222.0,0.19558562]
[1765409332452,0.0148414,92223.0,92222.0,0.19558562]
[1765409333552,0.0915214,92223.0,92222.0,0.19558562]
[1765409334755,0.1641514,92223.0,92222.0,0.19558562]
[1765409337056,0.1641514,92223.0,92222.0,0.61326422]
[1765409337357,0.1641514,92223.0,92222.0,0.72689171]
[1765409339156,0.1641514,92223.0,92222.0,0.68790422]
[1765409342360,0.1641514,92223.0,92222.0,0.18829422]
[1765409344958,0.0148414,92223.0,92222.0,0.18829422]
[1765409345474,0.1645614,92223.0,92222.0,0.18829422]
[1765409351468,0.1645614,92223.0,92222.0,0.11010422]
[1765409352169,0.1645614,92223.0,92222.0,0.18462422]
[1765409353169,0.25038841,92223.0,92222.0,0.03218422]
[1765409353465,0.25038841,92223.0,92222.0,0.17999422]
[1765409354257,0.1645614,92223.0,92222.0,0.10547422]
[1765409354463,0.1625614,92223.0,92222.0,0.10547422]
[1765409354770,0.1635614,92223.0,92222.0,0.17999422]
[1765409355073,0.1665614,92223.0,92222.0,0.17999422]
[1765409355573,0.1665614,92223.0,92222.0,0.10547422]
[1765409355776,0.1665614,92223.0,92222.0,0.03218422]
[1765409356164,0.1583321,92216.0,92215.0,0.14889443]
[1765409356364,0.1583321,92216.0,92215.0,0.18024667]
[1765409357371,0.1603321,92216.0,92215.0,0.18024667]
[1765409357774,0.1613321,92216.0,92215.0,0.18024667]
[1765409368178,0.1613321,92216.0,92215.0,0.20948523]
[1765409370084,0.1613321,92216.0,92215.0,0.18024667]
[1765409370276,0.1557421,92216.0,92215.0,0.18024667]
[1765409371582,0.1976121,92216.0,92215.0,0.18024667]
[1765409382292,0.1984521,92216.0,92215.0,0.18024667]
[1765409382505,0.1984521,92216.0,92215.0,0.03243667]
[1765409382792,0.1984521,92216.0,92215.0,0.18370667]
[1765409385495,0.1984521,92216.0,92215.0,0.21299538]
[1765409390005,0.1984521,92216.0,92215.0,0.18370667]
[1765409392587,0.1984521,92216.0,92215.0,0.03243667]
[1765409393197,0.18461,92208.0,92207.0,0.0251263]
[1765409393390,0.18461,92208.0,92190.0,0.00108472]
[1765409393391,0.14274,92195.0,92194.0,0.15148672]
[1765409393596,0.5143846,92195.0,92194.0,0.15148672]
[1765409395203,0.5153846,92195.0,92194.0,0.15148672]
[1765409395788,0.5173846,92195.0,92194.0,0.15148672]
[1765409400407,0.003,92195.0,92194.0,0.55148672]
[1765409401708,0.003,92195.0,92194.0,0.15148672]
[1765409403210,0.17933,92195.0,92194.0,0.15148672]
[1765409404408,0.17933,92195.0,92194.0,0.07193672]
[1765409404706,0.17933,92195.0,92194.0,0.14298672]
[1765409405300,0.17933,92195.0,92194.0,0.17318559]
[1765409406809,0.06922,92195.0,92194.0,0.17318559]
[1765409407011,0.003,92195.0,92194.0,0.17318559]
[1765409407196,0.17933,92195.0,92194.0,0.17318559]
[1765409409911,0.17933,92195.0,92194.0,0.00021672]
[1765409410102,0.146665,92191.0,92190.0,0.00108472]
[1765409410303,0.146665,92191.0,92190.0,0.07280472]
[1765409411112,0.148665,92191.0,92190.0,0.07280472]
[1765409411409,0.150665,92191.0,92190.0,0.00108472]
[1765409413415,0.23696426,92191.0,92190.0,0.00108472]
[1765409417315,0.1485273,92172.0,92171.0,0.13816]
[1765409417518,0.1485273,92172.0,92171.0,0.1683175]
[1765409417910,0.0108473,92172.0,92171.0,0.1683175]
[1765409418109,0.3608,92177.0,92176.0,0.13816]
[1765409418316,0.3608,92177.0,92176.0,0.0410043]
[1765409418317,8.981e-05,92177.0,92176.0,0.0410043]
[1765409418518,8.981e-05,92177.0,92176.0,0.1791643]
[1765409418712,0.17679867,92200.0,92190.0,0.1490052]
[1765409418713,0.3716447,92194.0,92190.0,0.1490052]
[1765409418913,0.0108445,92196.0,92190.0,0.20821183]
[1765409419222,0.0108448,92194.0,92190.0,0.20821183]
[1765409419615,0.0108448,92194.0,92193.0,0.13816]
[1765409419823,0.1485248,92194.0,92193.0,0.16831663]
[1765409420810,0.1525248,92194.0,92193.0,0.16831663]
[1765409421018,0.1565248,92194.0,92193.0,0.16831663]
[1765409421517,0.1525248,92194.0,92193.0,0.16831663]
[1765409421710,0.1575248,92194.0,92193.0,0.16831663]
[1765409423128,0.1535248,92194.0,92193.0,0.16831663]
[1765409423328,0.1575248,92194.0,92193.0,0.16831663]
[1765409423630,0.1565248,92194.0,92193.0,0.16831663]
[1765409424218,0.1525248,92194.0,92193.0,0.16831663]
[1765409424416,0.1575248,92194.0,92193.0,0.16831663]
[1765409426327,0.0198448,92194.0,92193.0,0.16831663]
[1765409427526,0.1575248,92194.0,92193.0,0.16831663]
[1765409428539,0.1575248,92194.0,92193.0,0.03015663]
[1765409428730,0.1575248,92194.0,92193.0,0.09377663]
[1765409429832,0.1525248,92194.0,92193.0,0.09377663]
[1765409430029,0.1585248,92194.0,92193.0,0.09377663]
[1765409430533,0.1585248,92194.0,92185.0,0.50356]
[1765409430534,0.1421856,92186.0,92185.0,0.63336]
[1765409430725,0.1421856,92186.0,92185.0,0.66355025]
[1765409431224,0.1421856,92186.0,92185.0,0.59737025]
[1765409431427,0.1421856,92186.0,92185.0,0.66355025]
[1765409431641,0.1461856,92186.0,92185.0,0.66355025]
[1765409432237,0.5069856,92186.0,92185.0,0.03019025]
[1765409432540,0.13134,92185.0,92184.0,2.93e-06]
[1765409433836,0.176268,92166.0,92165.0,0.13088502]
[1765409434033,0.176268,92166.0,92165.0,0.00108502]
[1765409434937,0.178268,92166.0,92165.0,0.00108502]
[1765409435533,0.178268,92166.0,92165.0,0.13088502]
[1765409435942,0.180268,92166.0,92165.0,0.13088502]
[1765409436431,0.180268,92166.0,92165.0,0.00108502]
[1765409437634,0.180268,92166.0,92165.0,0.13088502]
[1765409440943,0.180268,92166.0,92165.0,0.06470502]
[1765409441243,0.180268,92166.0,92165.0,0.00108502]
[1765409444239,0.180268,92166.0,92165.0,0.13088502]
[1765409445131,0.146188,92166.0,92165.0,0.13088502]
[1765409445332,0.187298,92166.0,92165.0,0.00108502]
[1765409446046,0.187298,92166.0,92157.0,0.05]
[1765409446047,0.1421889,92158.0,92157.0,0.05]
[1765409446248,0.5029889,92158.0,92157.0,0.05]
[1765409447148,0.5029889,92158.0,92157.0,0.11362]
[1765409447337,0.5029889,92158.0,92157.0,0.05]
[1765409448946,0.5049889,92158.0,92157.0,0.05]
[1765409449148,0.5059889,92158.0,92157.0,0.05]
[1765409452941,0.5059889,92158.0,92157.0,0.1798]
[1765409453253,0.5059889,92158.0,92157.0,0.11362]
[1765409454048,0.5059889,92158.0,92157.0,0.1798]
[1765409454247,0.3746489,92158.0,92157.0,0.1798]
[1765409455049,0.4381289,92158.0,92157.0,0.1798]
[1765409455246,0.5059889,92158.0,92157.0,0.1798]
[1765409458351,0.5059889,92158.0,92157.0,0.20974375]
[1765409460154,0.003,92158.0,92157.0,0.20974375]
[1765409461840,0.12767,92158.0,92157.0,0.20974375]
[1765409465942,0.12767,92158.0,92157.0,0.20980981]
[1765409470549,0.12767,92158.0,92157.0,0.08000981]
[1765409471542,0.12767,92158.0,92157.0,0.14611981]
[1765409473153,0.12767,92158.0,92157.0,0.08000981]
[1765409473960,0.12767,92158.0,92157.0,0.14611981]
[1765409474751,0.12767,92158.0,92157.0,0.08000981]
[1765409474959,0.21405223,92158.0,92157.0,0.08000981]
[1765409477360,0.1394704,92146.0,92145.0,0.1403505]
[1765409478763,0.1414704,92146.0,92145.0,0.1403505]
[1765409479367,0.1434704,92146.0,92145.0,0.1403505]
[1765409480875,0.13262,92146.0,92145.0,0.1403505]
[1765409489266,0.13262,92146.0,92145.0,0.17067264]
[1765409494179,0.1434703,92146.0,92145.0,0.17067264]
[1765409494383,0.13262,92146.0,92145.0,0.17067264]
[1765409500781,0.004,92146.0,92145.0,0.17067264]
[1765409501171,0.004,92146.0,92145.0,0.22928625]
[1765409501481,0.06899,92146.0,92145.0,0.22928625]
[1765409501988,0.12939,92146.0,92145.0,0.22928625]
[1765409502472,0.004,92146.0,92145.0,0.22928625]
[1765409503180,0.12939,92146.0,92145.0,0.22928625]
[1765409504384,0.12939,92146.0,92145.0,0.73292625]
[1765409504788,0.12939,92146.0,92145.0,0.15982214]
[1765409505088,0.12939,92146.0,92145.0,0.59660214]
[1765409505486,0.12939,92146.0,92145.0,0.66049214]
[1765409507191,0.12939,92146.0,92145.0,0.69956421]
[1765409510490,0.12939,92146.0,92145.0,0.69956034]
[1765409510792,0.12939,92146.0,92145.0,0.6692382]
[1765409510989,0.12939,92146.0,92145.0,0.66006558]
[1765409511589,0.12939,92146.0,92145.0,0.66006528]
[1765409515590,0.12939,92146.0,92145.0,0.69913209]
[1765409516094,0.004,92146.0,92145.0,0.69913209]
[1765409516797,0.004,92146.0,92145.0,0.66006528]
[1765409516994,0.01101207,92155.0,92145.0,0.66006528]
[1765409516995,0.00016277,92155.0,92154.0,0.1373794]
[1765409517294,0.00016277,92155.0,92154.0,0.67091468]
[1765409518284,0.00216277,92155.0,92154.0,0.70996734]
[1765409519195,0.00416277,92155.0,92154.0,0.71096734]
[1765409519794,0.00416277,92155.0,92154.0,0.67191468]
[1765409520595,0.00416277,92155.0,92154.0,1.03271468]
[1765409522996,0.1315477,92169.0,92168.0,0.1332377]
[1765409523196,0.1315477,92169.0,92168.0,0.02989528]
[1765409523384,0.131549,92157.0,92156.0,0.62599]
[1765409523587,0.131549,92157.0,92156.0,0.65585131]
[1765409524494,0.132549,92157.0,92156.0,0.65585131]
[1765409524793,0.493349,92157.0,92156.0,0.65585131]
[1765409525885,0.495349,92157.0,92156.0,0.65785131]
[1765409528897,0.374649,92157.0,92156.0,0.65785131]
[1765409529102,0.495349,92157.0,92156.0,0.65785131]
[1765409531703,0.434749,92157.0,92156.0,0.65785131]
[1765409532299,0.073949,92157.0,92156.0,0.65785131]
[1765409532501,0.013849,92157.0,92156.0,0.65785131]
[1765409533304,0.003,92157.0,92156.0,0.65785131]
[1765409534706,0.0108481,92165.0,92164.0,0.12186]
[1765409534903,0.0108481,92165.0,92164.0,0.15172131]
[1765409535103,0.00016277,92166.0,92165.0,0.1327081]
[1765409535399,0.00016277,92166.0,92165.0,0.16256941]
[1765409535908,0.00016277,92166.0,92165.0,0.54795941]
[1765409536811,0.16006,92175.0,92174.0,0.132707]
[1765409537103,0.16006,92175.0,92174.0,0.16256831]
[1765409538109,0.16206,92175.0,92174.0,0.16356831]
[1765409538298,0.004,92175.0,92174.0,0.16456831]
[1765409538697,0.004,92175.0,92174.0,0.52536831]
[1765409538916,0.002,92175.0,92174.0,0.52436831]
[1765409539096,0.00016277,92184.0,92183.0,0.132706]
[1765409539300,0.00016277,92184.0,92183.0,0.997066]
[1765409539507,0.00016277,92184.0,92183.0,1.02695971]
[1765409540399,0.00216277,92184.0,92183.0,1.02795971]
[1765409540805,0.00116277,92184.0,92183.0,1.02795971]
[1765409541407,0.00116277,92184.0,92183.0,1.02895971]
[1765409541408,0.00316277,92184.0,92183.0,1.02895971]
[1765409542408,0.00316277,92184.0,92183.0,1.02795971]
[1765409542605,0.00065607,92184.0,92183.0,1.02795971]
[1765409542811,0.00108472,92190.0,92189.0,0.1327053]
[1765409543114,0.0690642,92199.0,92198.0,0.1327042]
[1765409543320,0.0108438,92202.0,92201.0,0.1327036]
[1765409543514,0.12442129,92210.0,92204.0,0.0736132]
[1765409543515,0.0690635,92205.0,92204.0,0.0736132]
[1765409543819,0.05822,92205.0,92204.0,0.1327032]
[1765409544004,0.12146,92205.0,92204.0,0.1327032]
[1765409544203,0.03594,92210.0,92208.0,0.1327029]
[1765409544204,0.132303,92209.0,92208.0,0.1327029]
[1765409544399,0.0108426,92212.0,92211.0,0.0108427]
[1765409544616,0.0690626,92212.0,92211.0,0.1327027]
[1765409545115,0.1323026,92212.0,92211.0,0.1327027]
[1765409546503,0.1353026,92212.0,92211.0,0.1337027]
[1765409546707,0.12446,92212.0,92211.0,0.1337027]
[1765409547015,0.06122,92212.0,92211.0,0.1337027]
[1765409547207,0.001,92212.0,92211.0,0.1327027]
[1765409547516,0.002,92212.0,92211.0,0.1337027]
[1765409548902,0.001,92212.0,92211.0,0.1337027]
[1765409549105,0.001,92212.0,92211.0,0.1347027]
[1765409549318,0.0108407,92229.0,92228.0,0.1364707]
[1765409549515,0.1338307,92229.0,92228.0,0.1364707]
[1765409549813,0.12299,92229.0,92228.0,0.1364707]
[1765409550515,0.12299,92229.0,92228.0,0.1374707]
[1765409550516,0.12599,92229.0,92228.0,0.1374707]
[1765409550714,0.003,92229.0,92228.0,0.1374707]
[1765409551208,0.1338297,92237.0,92236.0,0.12563]
[1765409551517,0.1338306,92229.0,92228.0,0.001]
[1765409551706,0.1338306,92229.0,92228.0,0.63027]
[1765409551912,0.1348306,92229.0,92228.0,0.001]
[1765409552518,0.1338306,92229.0,92228.0,0.001]
[1765409552717,0.1720616,92220.0,92219.0,0.50979268]